fUST/lending_fUST_20240403
["ID","MTS","AMOUNT","RATE_DAILY","PERIOD"]
[321348561,1712083847764,-11606.18030125,0.0003966,5]
[321348562,1712083847773,-1957.07298712,0.00039687,2]
[321348564,1712083847782,-5000.0,0.00039699,6]
[321348566,1712083847792,-374.05770975,0.000397,2]
[321348568,1712083847801,-1500.0,0.000397,2]
[321348570,1712083847811,-1504.02,0.000397,2]
[321348572,1712083847822,-1500.0,0.000397,2]
[321348574,1712083847832,-231.60459998,0.000397,2]
[321348576,1712083847842,-182.74,0.000397,35]
[321348579,1712083847855,-9936.0,0.000397,35]
[321348581,1712083847866,-9936.0,0.000397,35]
[321348583,1712083847876,-579.0,0.000397,35]
[321348585,1712083847886,-500.0,0.000397,5]
[321348587,1712083847896,-150.5,0.00039706,35]
[321348589,1712083847905,-150.5,0.00039706,35]
[321348591,1712083847915,-150.5,0.00039706,35]
[321348593,1712083847925,-1313.56379123,0.00039709,6]
[321348595,1712083847934,-150.5,0.0003971,35]
[321348597,1712083847943,-150.75,0.0003971,35]
[321348599,1712083847955,-9936.0,0.0003971,35]
[321348601,1712083847963,-9936.0,0.0003971,35]
[321348603,1712083847973,-9936.0,0.0003971,35]
[321348605,1712083847982,-579.0,0.0003971,35]
[321348607,1712083847991,-1051.63852118,0.00039713,4]
[321348609,1712083848004,-5024.49179322,0.00039713,4]
[321348611,1712083848013,-268.21635721,0.00039714,4]
[321348613,1712083848021,-29157.11371681,0.00039715,3]
[321348615,1712083848030,-180.64591105,0.00039715,4]
[321348617,1712083848039,-155.12099438,0.00039715,4]
[321348619,1712083848048,-155.4307891,0.00039715,4]
[321348621,1712083848057,-212.5486204,0.00039715,4]
[321348623,1712083848066,-446.8272186,0.00039715,4]
[321348625,1712083848075,-687.64045964,0.00039715,4]
[321348627,1712083848084,-232.68360251,0.00039715,2]
[321348629,1712083848093,-496.74550723,0.00039715,4]
[321348630,1712083848103,-155.09460771,0.00039715,4]
[321348633,1712083848112,-340.03551602,0.00039715,4]
[321348635,1712083848122,-192.0162768,0.00039715,4]
[321348637,1712083848131,-2084.38029146,0.00039715,4]
[321348639,1712083848142,-4971.72782092,0.00039715,4]
[321348640,1712083848152,-2624.22535949,0.00039715,4]
[321348642,1712083848165,-621.0676832,0.00039715,4]
[321348644,1712083848174,-209.0162768,0.00039715,4]
[321348646,1712083848184,-1147.0048762,0.00039715,120]
[321348648,1712083848194,-263.02294455,0.00039715,4]
[321348651,1712083848204,-699.66481731,0.00039715,4]
[321348653,1712083848213,-1049.29406328,0.00039715,4]
[321348654,1712083848223,-918.2880504,0.00039715,4]
[321348657,1712083848233,-244.88011583,0.00039715,4]
[321348659,1712083848244,-155.67309005,0.00039715,4]
[321348661,1712083848255,-562.65578317,0.00039715,4]
[321348663,1712083848264,-847.4866484,0.00039715,2]
[321348665,1712083848276,-718.5650541,0.00039715,4]
[321348667,1712083848285,-155.54913905,0.00039715,4]
[321348669,1712083848294,-303.02957455,0.00039715,4]
[321348671,1712083848304,-2632.57934,0.00039715,4]
[321348673,1712083848313,-407.79402644,0.00039715,4]
[321348675,1712083848322,-307.29215057,0.00039715,4]
[321348677,1712083848331,-592.1375399,0.00039715,4]
[321348679,1712083848340,-721.39789499,0.00039715,2]
[321348681,1712083848350,-312.94713509,0.00039715,4]
[321348683,1712083848360,-1468.55599854,0.00039715,4]
[321348684,1712083848369,-456.89449228,0.00039715,4]
[321348686,1712083848379,-2773.84064662,0.00039715,4]
[321348688,1712083848388,-150.0,0.00039715,2]
[321348690,1712083848396,-339.61285003,0.00039715,4]
[321348692,1712083848406,-383.69002635,0.00039715,4]
[321348694,1712083848416,-215.16292793,0.00039715,4]
[321348697,1712083848425,-474.52479662,0.00039715,4]
[321348699,1712083848435,-391.83106764,0.00039715,4]
[321348701,1712083848445,-154.98450155,0.00039715,4]
[321348703,1712083848455,-90.62860018,0.00039716,35]
[321353689,1712085038159,-216.68778069,0.00032969,4]
[321353692,1712085038169,-2474.0892,0.0003297,4]
[321353695,1712085038178,-700.59343223,0.00032971,4]
[321353698,1712085038188,-312.07997974,0.00033,4]
[321353700,1712085038197,-463.70000041,0.00034,4]
[321353703,1712085038208,-24900.0,0.00035014,2]
[321353704,1712085038218,-1238.86,0.00036,2]
[321353707,1712085038227,-2345.68868656,0.00036896,2]
[321353708,1712085038239,-520.73711986,0.00036896,2]
[321353710,1712085038251,-2063.10423692,0.00036896,2]
[321353711,1712085038260,-3786.56610283,0.00037,5]
[321353712,1712085038272,-3940.30783888,0.00037,5]
[321353827,1712085043288,-463.70000041,0.00035013,4]
[321353828,1712085043298,-36.29999959,0.00037,5]
[321353840,1712085046183,-807.84,0.00037,5]
[321354030,1712086238373,-2061.741,0.00034891,4]
[321354032,1712086238382,-216.68778069,0.00034891,4]
[321354034,1712086238392,-150.0,0.000349,2]
[321354036,1712086238401,-642.28520276,0.00035,4]
[321354038,1712086238414,-2069.81595675,0.00035,4]
[321354041,1712086238429,-1307.22129593,0.00035,4]
[321354501,1712086243615,-495.22789991,0.0003489,4]
[321354784,1712086246419,-205.36553232,0.0003489,4]
[321354786,1712086246429,-1363.2527882,0.00035,4]
[321354788,1712086246438,-809.02380722,0.00035916,2]
[321354790,1712086246449,-1695.2,0.00035916,2]
[321355546,1712087433102,-263.30030311,0.00033331,4]
[321355548,1712087433113,-1179.91839689,0.00033331,4]
[321355549,1712087433123,-1102.6652475,0.00033332,2]
[321355551,1712087433132,-700.59343223,0.00033592,4]
[321355552,1712087433141,-154.98450155,0.00033592,4]
[321355554,1712087433150,-698.69847238,0.00033592,2]
[321355555,1712087433160,-1269.1913617,0.00033592,4]
[321355556,1712087433169,-4374.9823399,0.00033606,2]
[321355557,1712087433179,-451.2402368,0.00033816,2]
[321355558,1712087433193,-757.180263,0.00034425,2]
[321355559,1712087433202,-200.0,0.00034522,2]
[321355560,1712087433212,-625.9969173,0.00034541,2]
[321355561,1712087433222,-186.37209458,0.00034557,2]
[321355607,1712087438513,-63.62790542,0.00034557,2]
[321355609,1712087438522,-160.1081193,0.00034579,2]
[321355617,1712087438599,-192.0,0.00034608,2]
[321355620,1712087438609,-16855.2220893,0.00034608,2]
[321355622,1712087438623,-2064.96363582,0.00034608,2]
[321355831,1712087440758,-5979.81427488,0.00034608,2]
[321355833,1712087440767,-423.3179575,0.00034622,2]
[321355835,1712087440775,-4826.91116089,0.00034674,4]
[321355837,1712087440789,-3640.74507136,0.00034674,4]
[321355839,1712087440802,-4324.66580635,0.00034674,4]
[321355841,1712087440815,-7024.86928023,0.00034674,4]
[321355882,1712087441205,-14055.2134514,0.00034674,4]
[321355884,1712087441215,-332.0527844,0.00034675,2]
[321355886,1712087441225,-170.262356,0.00035265,2]
[321355888,1712087441235,-405.96158591,0.000358,5]
[321355890,1712087441245,-2734.30829347,0.00037,5]
[321355892,1712087441254,-447.35214439,0.00037,4]
[321355894,1712087441264,-315.1431574,0.00037808,2]
[321355896,1712087441276,-1500.0,0.00038047,2]
[321355898,1712087441286,-153.0,0.00038082,2]
[321355900,1712087441296,-154.98450155,0.00038145,4]
[321355902,1712087441305,-154.98450155,0.00038145,4]
[321355904,1712087441317,-206.94813565,0.00038145,4]
[321355906,1712087441328,-686.90387361,0.00038145,4]
[321355908,1712087441338,-179.42479523,0.00038146,4]
[321355910,1712087441348,-22194.19082156,0.00038147,30]
[321356145,1712087443717,-1307.88200124,0.00038147,30]
[321357570,1712088638831,-700.59343223,0.0003569,4]
[321357573,1712088638846,-1306.4171113,0.00035691,4]
[321357660,1712088643956,-136.8015887,0.00035691,4]
[321357661,1712088643971,-154.98450155,0.00035691,4]
[321357663,1712088643987,-304.2987002,0.00035705,7]
[321357664,1712088644002,-378.590131,0.00035818,2]
[321357665,1712088644018,-695.13231472,0.00035916,4]
[321357666,1712088644036,-57.46050937,0.00035916,4]
[321357667,1712088644045,-2454.17449063,0.00036,2]
[321357668,1712088644162,-1275.68161475,0.00036,2]
[321357669,1712088644176,-300.82682453,0.00036047,2]
[321357670,1712088644186,-300.0,0.00036193,2]
[321357671,1712088644196,-400.0,0.00036193,2]
[321357672,1712088644205,-138.81678072,0.00036194,2]
[321357684,1712088797501,485.67441433,0.000341,60]
[321357803,1712089831997,-382.38562889,0.00030586,4]
[321357909,1712089838019,-1060.83307111,0.00030586,4]
[321357912,1712089838029,-1517.74333101,0.00030587,4]
[321357915,1712089838038,-1773.8471955,0.00030595,2]
[321357918,1712089838046,-207.49320942,0.00030655,2]
[321357921,1712089838058,-192.50679058,0.00030655,2]
[321357924,1712089838066,-5583.7220806,0.00030656,2]
[321357927,1712089838075,-478.75112889,0.00030892,2]
[321357930,1712089838083,-399.914901,0.00030986,2]
[321357933,1712089838092,-166.0,0.00030988,2]
[321357936,1712089838101,-4233.90790896,0.00030988,2]
[321357976,1712089839998,-6609.9,0.00030988,2]
[321358151,1712091038198,-1074.167061,0.00028879,2]
[321358154,1712091038208,-276.44319995,0.0002888,2]
[321358157,1712091038216,-200.55121636,0.00028888,2]
[321358160,1712091038226,-300.0,0.00029379,2]
[321358162,1712091038235,-1138.16260273,0.0002938,2]
[321358634,1712092238357,-520.03129159,0.0002725,2]
[321358641,1712092238381,-185.17273563,0.0002725,2]
[321358644,1712092238401,-154.98450155,0.00027251,2]
[321358647,1712092238420,-1074.167061,0.00027251,2]
[321358650,1712092238441,-154.969006,0.0002726,2]
[321358653,1712092238457,-150.0,0.0002728,2]
[321358656,1712092238476,-200.0,0.00028622,2]
[321358659,1712092238494,-625.9969173,0.00028995,2]
[321358661,1712092238510,-170.262356,0.00029417,2]
[321358665,1712092238531,-570.78869753,0.00030581,4]
[321358668,1712092238551,-129.8047347,0.00030581,4]
[321358671,1712092238569,-379.01915625,0.00030582,2]
[321358674,1712092238590,-147.25500635,0.00030582,2]
[321359563,1712092247684,-252.74499365,0.00030582,2]
[321359565,1712092247695,-332.0,0.00030583,2]
[321359567,1712092247705,-199.95745,0.00030583,2]
[321359569,1712092247713,-12387.75737443,0.00030583,2]
[321362058,1712093438607,-185.17273563,0.00028261,2]
[321362061,1712093438615,-1806.92740437,0.00028261,2]
[321362651,1712093443720,-234.11422317,0.00026161,2]
[321362653,1712093443730,-170.710275,0.00027306,2]
[321362655,1712093443740,-282.2809753,0.00028261,2]
[321362657,1712093443749,-1074.167061,0.00028262,2]
[321362659,1712093443759,-260.0,0.00028265,2]
[321362661,1712093443768,-6750.93425014,0.00028266,2]
[321362663,1712093443780,-1788.74944248,0.00028266,2]
[321363010,1712093447438,-13146.15715749,0.00028266,2]
[321368156,1712094569552,3474.89,0.000341,56]
[321368157,1712094626606,-1074.167061,0.00026126,2]
[321368158,1712094626635,-214.41229815,0.00026127,2]
[321368159,1712094626662,-1084.57979886,0.00026127,2]
[321368160,1712094626689,-413.47304157,0.00026166,2]
[321368161,1712094626717,-300.0,0.00026241,2]
[321368162,1712094626744,-9740.4329818,0.00026242,2]
[321368163,1712094626774,-1102.6652475,0.00026323,2]
[321368164,1712094626803,-1938.4665346,0.0002634,2]
[321368165,1712094626831,-223.0838892,0.00026438,2]
[321368166,1712094626860,-478.568857,0.00026507,2]
[321368167,1712094626889,-169.0,0.00027,2]
[321368168,1712094626917,-505.83918952,0.00028,2]
[321368169,1712094626945,-278.0,0.00028049,2]
[321368171,1712094630029,-1084.57979886,0.00026125,2]
[321368224,1712094633574,-751.84627861,0.00028201,2]
[321368226,1712094633586,-151.0,0.0002827,2]
[321368230,1712094633703,-151.0,0.0002827,2]
[321368231,1712094633713,-10143.43006908,0.0002827,2]
[321368232,1712094633725,-1156.86352208,0.0002827,2]
[321368233,1712094633738,-13599.70640884,0.0002827,2]
[321368234,1712094633747,-270.0,0.00028392,2]
[321368235,1712094633757,-159.3337253,0.00028667,4]
[321368236,1712094633766,-169.0,0.00028767,2]
[321368237,1712094633775,-427.6986046,0.00028778,2]
[321368238,1712094633784,-4612.46543529,0.0002938,2]
[321368239,1712094633794,-151.0,0.0002938,2]
[321368240,1712094633803,-151.0,0.0002938,2]
[321368241,1712094633813,-151.0,0.0002938,2]
[321368242,1712094633823,-151.0,0.0002938,2]
[321368243,1712094633832,-151.0,0.0002938,2]
[321368244,1712094633842,-153.0,0.000294,2]
[321368245,1712094633851,-257.45,0.0003,3]
[321368246,1712094633861,-171.0,0.00030205,2]
[321368247,1712094633870,-153.0,0.00030256,2]
[321368248,1712094633879,-166.9885176,0.00030276,2]
[321368249,1712094633888,-151.0,0.00030383,2]
[321368250,1712094633898,-188.119426,0.00030483,2]
[321368251,1712094633907,-151.0,0.00030483,2]
[321368252,1712094633916,-151.0,0.00030483,2]
[321368253,1712094633926,-151.0,0.00030483,2]
[321368254,1712094633935,-151.0,0.00030483,2]
[321368255,1712094633944,-151.0,0.00030583,2]
[321368256,1712094633954,-151.0,0.00030583,2]
[321368257,1712094633963,-151.0,0.00030635,2]
[321368258,1712094633972,-151.0,0.00030635,2]
[321368259,1712094633982,-751.8462786,0.00030635,2]
[321368260,1712094633992,-10213.23841,0.00030801,2]
[321368261,1712094634001,-181.314263,0.00030801,2]
[321368262,1712094634011,-151.0,0.00030801,2]
[321368263,1712094634020,-151.0,0.00030801,2]
[321368264,1712094634029,-151.0,0.00030801,2]
[321368265,1712094634039,-413.47304157,0.00031166,2]
[321368266,1712094634049,-720.88311116,0.00031998,4]
[321368267,1712094634059,-155.0379435,0.00031998,4]
[321368268,1712094634071,-219.58654766,0.00031998,4]
[321368269,1712094634081,-1123.3306243,0.00031998,4]
[321368270,1712094634093,-5.69576803,0.00031998,4]
[321368271,1712094634102,-371.29646249,0.00031998,4]
[321368272,1712094634112,-151.0,0.00031998,2]
[321368273,1712094634122,-278.801294,0.00031998,2]
[321368274,1712094634131,-189.865779,0.00031998,2]
[321368275,1712094634140,-151.0,0.00031998,2]
[321368276,1712094634149,-2799.51,0.00031999,4]
[321368277,1712094634159,-640.47039958,0.00031999,2]
[321368278,1712094634168,-151.0,0.00031999,2]
[321368279,1712094634179,-1269.1913617,0.00033069,4]
[321368280,1712094634188,-751.8462786,0.0003307,2]
[321368281,1712094634198,-151.0,0.0003307,2]
[321368282,1712094634209,-263.0921314,0.00033151,2]
[321368283,1712094634221,-153.0,0.00033151,2]
[321368284,1712094634230,-153.0,0.00033151,2]
[321368285,1712094634241,-463.70000041,0.00034,4]
[321368286,1712094634251,-621.21731866,0.00034559,2]
[321368287,1712094634261,-224.16094477,0.00034999,7]
[321368288,1712094634271,-418.79145821,0.00034999,7]
[321368289,1712094634281,-9695.19143076,0.00035,2]
[321368767,1712094642949,-151.0,0.0002938,2]
[321368769,1712094642959,-251.629042,0.00030383,2]
[321368771,1712094642969,-564.047758,0.00035,2]
[321369168,1712094646812,-26000.0,0.00035,2]
[321375348,1712095079323,208.268251,0.00032357,120]
[321375350,1712095221929,-93708.93754762,0.00039568,30]
[321375351,1712095221956,-371125.85823381,0.00039568,60]
[321375352,1712095221980,-968.96751337,0.00039568,120]
[321375353,1712095222004,-284.85549376,0.00039568,120]
[321375354,1712095222027,-1107.60007859,0.00039568,120]
[321375355,1712095222052,-1532803.78113285,0.00039568,60]
[321375356,1712095227982,-306256.59938805,0.00039568,60]
[321375357,1712095228017,-94388.25551687,0.00039568,60]
[321375358,1712095228042,-505.11670735,0.00039568,30]
[321375359,1712095228067,-6272.38236751,0.00039568,30]
[321375360,1712095228091,-902.0,0.00039568,30]
[321375361,1712095228115,-95162.05420616,0.00039568,30]
[321375362,1712095228140,-200.0,0.00039568,30]
[321375363,1712095228164,-200.0,0.00039568,30]
[321375364,1712095228189,-152.10636294,0.00039568,32]
[321375365,1712095228290,-4064.00646922,0.00039568,30]
[321375419,1712095557901,208.268251,0.00031424,120]
[321375421,1712095577400,-248.79254307,0.00031615,4]
[321375422,1712095577432,-154.98450155,0.00031616,4]
[321375423,1712095577461,-1753.02194488,0.00031616,4]
[321375424,1712095577494,-1443.2187,0.00031617,4]
[321375425,1712095577526,-400.0,0.00031617,2]
[321375426,1712095577559,-400.0,0.00031617,2]
[321375427,1712095577588,-372.0,0.00031617,3]
[321375428,1712095577619,-3458.39578796,0.00031618,4]
[321375429,1712095577646,-23347.58652254,0.00031618,4]
[321375460,1712095743651,161.21818445,0.0003957,120]
[321375519,1712095831954,-400.0,0.00031728,3]
[321375521,1712095831963,-400.0,0.00031728,2]
[321375523,1712095831973,-400.0,0.00031728,2]
[321375525,1712095831982,-14789.0644933,0.00031729,2]
[321375527,1712095831992,-239.284428,0.00032431,2]
[321375530,1712095832002,-1443.2187,0.00032897,4]
[321375531,1712095832012,-7113.71326785,0.00032898,4]
[321375533,1712095832021,-24900.0,0.00032909,2]
[321375535,1712095832030,-300.73851144,0.00033918,2]
[321375538,1712095832039,-624.79269942,0.00034035,2]
[321375540,1712095832050,-543.0,0.00034135,2]
[321375542,1712095832059,-560.0,0.00034135,2]
[321375544,1712095832068,-500.0,0.00034499,7]
[321375546,1712095832077,-500.0,0.00034499,7]
[321375548,1712095832086,-415.57282662,0.00034499,7]
[321375550,1712095832095,-500.0,0.00034499,7]
[321375552,1712095832104,-500.0,0.00034499,7]
[321375554,1712095832113,-500.0,0.00034499,7]
[321375556,1712095832122,-199.30214499,0.00034499,7]
[321375557,1712095832131,-500.0,0.00034499,7]
[321375559,1712095832141,-500.0,0.00034499,7]
[321375562,1712095832150,-500.0,0.00034499,7]
[321375564,1712095832159,-10000.0,0.000345,5]
[321375566,1712095832168,-162.72332765,0.00034649,3]
[321375568,1712095832177,-300.73851144,0.000347,2]
[321375569,1712095832186,-160.54147916,0.00034999,10]
[321375572,1712095832196,-301.49562492,0.00034999,4]
[321375574,1712095832206,-3775.61437773,0.00035,2]
[321375575,1712095832215,-11473.87819959,0.00035,4]
[321375576,1712095832224,-164.773883,0.00035,2]
[321375577,1712095832233,-300.73851144,0.00035483,2]
[321375578,1712095832242,-10000.0,0.000355,7]
[321375580,1712095832251,-1500.0,0.000359,2]
[321375581,1712095832260,-3310.63478399,0.00035925,30]
[321375582,1712095832272,-7072.0094,0.00035925,30]
[321375709,1712095843058,-463.70000041,0.00034034,4]
[321375710,1712095843114,-1187.956041,0.00035925,30]
[321375729,1712096582308,168.046606,0.00033379,120]
[321375968,1712097040440,-1443.2187,0.00030581,4]
[321375969,1712097040450,-400.0,0.00030582,2]
[321375970,1712097040460,-239.284428,0.00030583,2]
[321375971,1712097040468,-1612.9037178,0.00030583,2]
[321375972,1712097040478,-24900.0,0.00030583,2]
[321375973,1712097040497,-150.0,0.00031279,2]
[321375974,1712097040509,-383.0,0.00032941,2]
[321375975,1712097040522,-2298.1129534,0.00033479,2]
[321375976,1712097040532,-155.00465014,0.00034298,4]
[321375977,1712097040541,-150.36925572,0.00034898,2]
[321375978,1712097040552,-1112.43216239,0.00034998,4]
[321375979,1712097040562,-155.996767,0.00034998,4]
[321375980,1712097040571,-18085.94356914,0.00034999,4]
[321375981,1712097040582,-359.79064349,0.00034999,7]
[321375982,1712097040594,-500.0,0.00034999,7]
[321375983,1712097040603,-524.67184799,0.00034999,7]
[321375984,1712097040613,-40034.85356649,0.00035,2]
[321375985,1712097040623,-306.0,0.00035616,2]
[321375986,1712097040632,-306.0,0.00035616,2]
[321375987,1712097040643,-150.36925572,0.00035786,2]
[321375988,1712097040653,-2574.2339,0.00035917,30]
[321375989,1712097040662,-154.98450155,0.00035925,30]
[321375990,1712097040673,-294.9693478,0.00035929,4]
[321375991,1712097040683,-14598.75421502,0.00036,2]
[321375992,1712097040694,-150.0,0.00036279,2]
[321375993,1712097040703,-153.0,0.00036438,2]
[321375994,1712097040714,-153.0,0.00036438,2]
[321375995,1712097040723,-10000.0,0.000365,15]
[321375996,1712097040733,-150.36925572,0.00036674,2]
[321375997,1712097040743,-43.40933693,0.000367,2]
[321376005,1712097043329,-538.5656123,0.000367,2]
[321376021,1712097589677,168.046606,0.00030583,120]
[321376022,1712097840430,3000.0,0.00023937,2]
[321376078,1712098129808,168.046606,0.00033974,120]
[321376315,1712098243477,-400.0,0.00034358,2]
[321376316,1712098243487,-400.0,0.00034358,2]
[321376317,1712098243496,-1115.73200922,0.00034359,2]
[321376900,1712099112044,6250.0,0.00030583,120]
[321377110,1712099432537,-364.50387808,0.0003262,4]
[321377112,1712099432546,-5000.0,0.00032621,3]
[321377114,1712099432556,-20346.4208971,0.00033051,2]
[321377116,1712099432567,-171.333637,0.000331,2]
[321377118,1712099432576,-400.0,0.00033285,2]
[321377120,1712099432584,-400.0,0.00033285,2]
[321377122,1712099432596,-294.53081411,0.00033572,2]
[321377124,1712099432605,-824.841,0.00033672,4]
[321377133,1712099432614,-824.842,0.00033672,4]
[321377136,1712099432697,-824.842,0.00033672,4]
[321377138,1712099432706,-824.842,0.00033672,4]
[321377140,1712099432715,-824.842,0.00033672,4]
[321377142,1712099432724,-294.53081411,0.00033904,2]
[321377144,1712099432734,-294.53081411,0.00034236,2]
[321377146,1712099432744,-962.26213504,0.00034357,4]
[321377148,1712099432754,-23066.88802964,0.00034357,4]
[321377150,1712099432764,-339.19721141,0.00034357,4]
[321377152,1712099432775,-154.19599007,0.00034358,7]
[321377154,1712099432786,-439.14507771,0.00034358,7]
[321377156,1712099432796,-29300.0,0.00034359,60]
[321377158,1712099432806,-367.94983882,0.00034359,2]
[321377160,1712099432815,-21514.14164522,0.00034359,4]
[321377162,1712099432824,-294.53081411,0.00034568,2]
[321377164,1712099432833,-153.0,0.00034795,2]
[321377166,1712099432842,-153.0,0.00034795,2]
[321377167,1712099432852,-294.53081411,0.000349,2]
[321377168,1712099432861,-153.0,0.00034932,2]
[321377169,1712099432870,-153.0,0.00034932,2]
[321377170,1712099432879,-153.0,0.00034978,2]
[321377171,1712099432888,-2791.45112317,0.00034998,120]
[321377172,1712099432898,-3820.75233542,0.00034999,4]
[321377379,1712099438614,-1996.25064,0.00034649,3]
[321377641,1712099440696,-318.12210289,0.00034649,3]
[321377665,1712099443985,-2685.62725711,0.00034649,3]
[321377666,1712099443994,-15314.52734821,0.00034999,4]
[321377667,1712099444007,-5470.01099386,0.00034999,4]
[321377668,1712099444016,-151.0,0.00034999,2]
[321377669,1712099444026,-151.0,0.00034999,2]
[321377670,1712099444035,-151.0,0.00034999,2]
[321377671,1712099444044,-151.0,0.00034999,2]
[321377672,1712099444054,-225.84792,0.00034999,2]
[321377673,1712099444063,-151.0,0.00034999,2]
[321377674,1712099444072,-151.0,0.00034999,2]
[321377675,1712099444082,-151.0,0.00034999,2]
[321377676,1712099444091,-151.0,0.00034999,2]
[321377677,1712099444100,-151.0,0.00034999,2]
[321377678,1712099444110,-40034.85356649,0.00035,2]
[321377679,1712099444121,-151.0,0.00035,2]
[321377680,1712099444130,-151.0,0.00035,2]
[321377681,1712099444140,-151.0,0.00035,2]
[321377682,1712099444150,-151.0,0.00035,2]
[321377683,1712099444159,-151.0,0.00035,2]
[321377684,1712099444169,-151.0,0.00035,2]
[321377685,1712099444179,-151.0,0.00035,2]
[321377686,1712099444189,-151.0,0.00035,2]
[321377687,1712099444198,-151.0,0.00035,2]
[321377688,1712099444208,-153.0,0.00035056,2]
[321377689,1712099444218,-882.0,0.000352,2]
[321377690,1712099444229,-306.0,0.00035342,2]
[321377691,1712099444240,-153.0,0.00035616,2]
[321377692,1712099444251,-153.0,0.00035616,2]
[321377693,1712099444261,-153.0,0.00035616,2]
[321377694,1712099444271,-6250.0,0.00035681,120]
[321377695,1712099444281,-560.0,0.00035752,2]
[321377696,1712099444291,-153.0,0.0003589,2]
[321377697,1712099444303,-153.0,0.00036164,2]
[321377698,1712099444314,-8570.02,0.000365,12]
[321377699,1712099444325,-151.0,0.000365,2]
[321377700,1712099444336,-151.0,0.000365,2]
[321377701,1712099444346,-151.0,0.000365,2]
[321377702,1712099444356,-151.0,0.000365,2]
[321377703,1712099444365,-151.0,0.000365,2]
[321377704,1712099444374,-151.0,0.000365,2]
[321377705,1712099444384,-151.0,0.000365,2]
[321377706,1712099444393,-151.0,0.000365,2]
[321377707,1712099444402,-419.98793546,0.00036699,4]
[321377708,1712099444411,-156.73065106,0.000367,30]
[321377709,1712099444421,-306.0,0.00036849,2]
[321377710,1712099444431,-985.26342414,0.00037144,4]
[321377711,1712099444440,-2232.0396081,0.00037145,4]
[321377712,1712099444449,-193.4538817,0.00037145,4]
[321377713,1712099444459,-10000.0,0.000375,20]
[321377714,1712099444468,-151.0,0.000375,2]
[321377715,1712099444477,-151.0,0.000375,2]
[321377716,1712099444548,-151.0,0.000375,2]
[321377717,1712099444560,-151.0,0.000375,2]
[321377718,1712099444569,-151.0,0.000375,2]
[321377719,1712099444578,-151.0,0.000375,2]
[321377720,1712099444587,-151.0,0.000375,2]
[321377721,1712099444596,-151.0,0.000375,2]
[321377722,1712099444609,-151.0,0.000375,2]
[321377723,1712099444618,-155.92103403,0.00037662,30]
[321377724,1712099444627,-594.38395289,0.00037725,4]
[321377725,1712099444638,-158.14924931,0.00037729,4]
[321377726,1712099444648,-167.68860212,0.000378,3]
[321377727,1712099444657,-151.0,0.00037911,2]
[321377728,1712099444666,-151.0,0.00037914,2]
[321377729,1712099444676,-151.0,0.00037914,2]
[321377730,1712099444686,-151.0,0.00037914,2]
[321377731,1712099444696,-151.0,0.00037914,2]
[321377732,1712099444705,-151.0,0.00037914,2]
[321377733,1712099444714,-151.0,0.00037914,2]
[321377734,1712099444724,-65837.3866,0.00037915,30]
[321377735,1712099444733,-151.0,0.00037915,2]
[321377736,1712099444742,-151.0,0.00037915,2]
[321377737,1712099444751,-463.70000041,0.00037947,4]
[321377738,1712099444761,-182.11513353,0.00037948,4]
[321377739,1712099444770,-2317.7067515,0.00037948,4]
[321377740,1712099444780,-360.3778764,0.00037949,4]
[321377741,1712099444789,-792.08130446,0.00038038,4]
[321377742,1712099444798,-155.85458783,0.0003804,4]
[321377743,1712099444808,-363.20833943,0.00038041,4]
[321377744,1712099444817,-276.1036214,0.00038041,4]
[321377745,1712099444826,-419.4372247,0.00038041,7]
[321377746,1712099444836,-1574.61284896,0.00038041,4]
[321377747,1712099444845,-262.03429965,0.00038042,2]
[321377748,1712099444854,-275.42030674,0.00038042,4]
[321377749,1712099444864,-800.6782083,0.00038043,4]